fUSD/lending_fUSD_20250407
["ID","MTS","AMOUNT","RATE_DAILY","PERIOD"]
[357422145,1744060157791,-480.076,0.00020336,2]
[357422146,1744060157812,-480.076,0.00020336,2]
[357422147,1744060157833,-480.076,0.00020336,2]
[357422148,1744060157853,-480.076,0.00020336,2]
[357422149,1744060157874,-480.076,0.00020336,2]
[357422150,1744060157894,-480.076,0.00020336,2]
[357422151,1744060158289,-480.076,0.00020336,2]
[357422152,1744060158313,-480.076,0.00020336,2]
[357422153,1744060158336,-3000.0,0.00020337,2]
[357422154,1744060158358,-9601.4165997,0.00020337,2]
[357422155,1744060158380,-119253.86911583,0.00020337,2]
[357422156,1744060162201,-25008.69323393,0.00020337,2]
[357422157,1744060170101,-781.49263043,0.00020337,2]
[357422161,1744060232135,-757.8900005,0.00020337,2]
[357422162,1744060232148,-662.02854974,0.00020337,2]
[357422163,1744060232270,-257.9999999,0.00020337,2]
[357422164,1744060232284,-32582.12690271,0.00020337,2]
[357422165,1744060232327,-1693.04786315,0.00020337,2]
[357422166,1744060232341,-9978.93219414,0.00020337,2]
[357422167,1744060232361,-1771.45420964,0.00020337,2]
[357422168,1744060232374,-587.01256511,0.00020337,2]
[357422169,1744060232404,-3071.33309491,0.00020337,2]
[357422170,1744060232417,-8348.71397203,0.00020337,2]
[357422187,1744060238087,-424.072634,0.00020337,2]
[357422188,1744060238099,-18560.89210417,0.00020337,2]
[357422189,1744060238145,-438.49640462,0.00020337,2]
[357422190,1744060238313,-2613.98379708,0.00020337,2]
[357422194,1744060240390,-21921.63698031,0.00020337,2]
[357422195,1744060240400,-33232.0990019,0.00020337,2]
[357422196,1744060240410,-7655.6186194,0.00020337,2]
[357422197,1744060240419,-1068.40958001,0.00020341,5]
[357422198,1744060240428,-1612.76,0.00020351,2]
[357422199,1744060240437,-500.0,0.00020373,2]
[357422200,1744060240447,-403.44864785,0.00020373,2]
[357422201,1744060240456,-250.0,0.00020386,2]
[357422202,1744060240465,-1938.43,0.00020834,2]
[357422203,1744060240475,-300.0,0.00021,2]
[357422204,1744060240484,-1237.0,0.00021004,2]
[357422205,1744060240494,-1852.42,0.0002148,2]
[357422206,1744060240503,-500.0,0.000216,2]
[357422207,1744060240512,-500.0,0.00021613,2]
[357422208,1744060240521,-5631.12059613,0.00021814,2]
[357422209,1744060242258,-312.239997,0.00021814,2]
[357422210,1744060242451,-1106.36940687,0.00021814,2]
[357422211,1744060242461,-250.0,0.0002189,2]
[357422214,1744060242776,-171.4388,0.0002189,2]
[357422215,1744060242786,-3661.51,0.00021895,2]
[357422216,1744060242796,-150.0,0.00021917,2]
[357422217,1744060242806,-922.27,0.00021934,2]
[357422219,1744060242816,-205.92,0.0002194,2]
[357422220,1744060242826,-200.0,0.0002194,7]
[357422221,1744060242836,-190.66,0.00021973,2]
[357422222,1744060242845,-168.32,0.00022109,2]
[357422223,1744060242854,-2000.0,0.00022209,2]
[357422224,1744060242866,-9504.8,0.00022221,2]
[357422227,1744060242875,-250.0,0.00022241,2]
[357422229,1744060242888,-1231.56,0.00022244,2]
[357422231,1744060242897,-200.0,0.00022244,2]
[357422233,1744060242907,-250.0,0.00022259,2]
[357422235,1744060242916,-989.4,0.00022303,2]
[357422237,1744060242927,-12835.08,0.00022304,2]
[357422239,1744060242936,-1750.59,0.00022308,2]
[357422241,1744060242945,-5572.03,0.00022309,2]
[357422243,1744060242955,-6619.93,0.00022312,2]
[357422245,1744060242964,-2631.19,0.00022329,2]
[357422247,1744060242976,-1000.0,0.00022447,2]
[357422249,1744060242986,-171.78,0.00022508,2]
[357422251,1744060242995,-3878.21,0.00022535,2]
[357422253,1744060243005,-500.0,0.00022548,2]
[357422256,1744060243015,-200.0,0.00022578,2]
[357422257,1744060243023,-1612.76,0.00022615,2]
[357422259,1744060243033,-11489.43332599,0.00022918,2]
[357422262,1744060243043,-350.0,0.00023,2]
[357422263,1744060243052,-154.0,0.00023,2]
[357422264,1744060243062,-166.72,0.0002301,2]
[357422265,1744060243071,-177.89,0.00023266,2]
[357422266,1744060243080,-150.0,0.00023287,2]
[357422267,1744060243090,-300.0,0.00023699,2]
[357422268,1744060243099,-623.99,0.00023836,2]
[357422270,1744060243109,-168.32,0.00024566,2]
[357422272,1744060243118,-150.0,0.00024657,2]
[357422274,1744060243128,-1000.0,0.00024658,2]
[357422275,1744060243137,-501.71063277,0.00024773,2]
[357422276,1744060243147,-500.0,0.00024773,2]
[357422277,1744060243156,-500.0,0.00024773,2]
[357422278,1744060243165,-500.0,0.00024773,2]
[357422279,1744060243174,-500.01597978,0.00024773,2]
[357422280,1744060243183,-566.66970493,0.00024773,2]
[357422281,1744060243193,-1612.76,0.00024879,2]
[357422282,1744060243202,-26925.9504185,0.000249,2]
[357422283,1744060243211,-8975.31680616,0.00024932,2]
[357422284,1744060243222,-1000.0,0.00024942,2]
[357422285,1744060243232,-8975.31680616,0.0002497,2]
[357422286,1744060243242,-574.42,0.0002498,2]
[357422287,1744060243251,-499.99,0.0002498,2]
[357422288,1744060243260,-9999.99,0.0002498,2]
[357422289,1744060243270,-819.32,0.0002498,2]
[357422290,1744060243279,-999.99,0.0002498,2]
[357422291,1744060243288,-150.99,0.0002498,2]
[357422292,1744060243299,-3259.96,0.0002498,2]
[357422293,1744060243308,-622.77,0.0002498,5]
[357422294,1744060243319,-1195.46,0.0002498,2]
[357422295,1744060243329,-314.94,0.0002498,2]
[357422296,1744060243338,-9999.99,0.0002498,2]
[357422297,1744060243348,-2637.38,0.0002498,2]
[357422298,1744060243358,-299.99,0.0002498,7]
[357422299,1744060243369,-295.31,0.0002498,2]
[357422300,1744060243378,-650.95,0.0002498,2]
[357422302,1744060243389,-166.87,0.00024983,2]
[357422304,1744060243399,-200.0,0.00025,2]
[357422306,1744060243409,-1522.88741964,0.00025,2]
[357422307,1744060243420,-400.0,0.00025,2]
[357422308,1744060243429,-300.0,0.00025069,2]
[357422309,1744060243440,-8975.31680616,0.00025469,2]
[357422310,1744060243449,-8975.31680616,0.00025575,2]
[357422311,1744060243459,-11489.43332599,0.00025585,2]
[357422312,1744060243469,-8975.31680616,0.00025755,2]
[357422313,1744060243478,-17950.6336123,0.00025766,2]
[357422314,1744060243488,-500.0,0.00025773,2]
[357422315,1744060243498,-301.64931533,0.00025773,2]
[357422316,1744060243507,-500.0,0.00025773,2]
[357422317,1744060243516,-1000.0,0.00025852,2]
[357422318,1744060243526,-8975.31680616,0.0002589,2]
[357422319,1744060243535,-400.0,0.000259,9]
[357422320,1744060243544,-150.0,0.00026027,2]
[357422321,1744060243553,-8975.31680616,0.00026571,2]
[357422322,1744060243563,-359.82,0.00026849,2]
[357422323,1744060243572,-151.55,0.00026849,2]
[357422324,1744060243582,-450.0,0.00027,2]
[357422325,1744060243591,-168.32,0.00027023,2]
[357422326,1744060243600,-1612.76,0.00027143,2]
[357422327,1744060243611,-17950.6336123,0.00027387,2]
[357422328,1744060243620,-150.0,0.00027397,2]
[357422329,1744060243629,-700.0,0.00027397,2]
[357422330,1744060243639,-1196.31,0.00027397,2]
[357422331,1744060243648,-6500.82,0.00027397,2]
[357422332,1744060243657,-19999.99,0.00027397,2]
[357422333,1744060243667,-2757.5,0.00027397,2]
[357422334,1744060243676,-417.20788321,0.000274,2]
[357422335,1744060243686,-500.0,0.000274,2]
[357422336,1744060243696,-1000.0,0.00027436,2]
[357422338,1744060243705,-8975.31680616,0.0002797,2]
[357422340,1744060243715,-8975.31680616,0.0002799,2]
[357422341,1744060243724,-11489.43332599,0.00028252,2]
[357422342,1744060243733,-150.0,0.00028767,2]
[357422343,1744060243744,-1196.31,0.00028767,2]
[357422344,1744060243753,-8975.31680616,0.0002898,2]
[357422345,1744060243762,-500.0,0.00029,2]
[357422346,1744060243772,-500.0,0.00029246,5]
[357422347,1744060243781,-1612.76,0.00029406,2]
[357422348,1744060243791,-168.32,0.00029479,2]
[357422349,1744060243800,-338.08150512,0.000299,2]
[357422350,1744060243809,-164.93227788,0.000299,2]
[357422351,1744060243819,-163.52750082,0.000299,2]
[357422352,1744060243828,-900.0,0.000299,10]
[357422353,1744060243837,-8975.31680616,0.0002991,2]
[357422354,1744060243847,-1000.0,0.0002993,2]
[357422355,1744060243856,-53851.900837,0.0002997,2]
[357422356,1744060243867,-151.3,0.0002997,2]
[357422357,1744060243876,-313.83457037,0.00029973,5]
[357422358,1744060243886,-71802.5344493,0.0002998,2]
[357422359,1744060243896,-8975.31680616,0.0002999,2]
[357422360,1744060243905,-461.621863,0.0003,10]
[357422361,1744060243914,-8683.90734767,0.0003,2]
[357422362,1744060243927,-2290.7,0.0003,2]
[357422363,1744060243952,-11877.12412,0.0003,2]
[357422364,1744060244764,-1006.68,0.0003,2]
[357422365,1744060244776,-930.36,0.0003,2]
[357422366,1744060244787,-1073.5,0.0003,2]
[357422367,1744060244799,-546.38440035,0.0003,2]
[357422368,1744060244810,-972.78559965,0.0003,2]
[357422369,1744060244830,-18650.03052197,0.0003,2]
[357422370,1744060244840,-5249.96947803,0.0003,2]
[357422373,1744060246138,-3171.46576798,0.0003,2]
[357422446,1744060796842,-732.5041,0.0003355,120]
[357422447,1744060796878,-891.8168546,0.00034605,30]
[357422448,1744060796912,-1000.0,0.00034993,30]
[357422449,1744060796944,-1000.0,0.00034993,30]
[357422450,1744060796976,-237.26260782,0.00035,30]
[357422451,1744060797009,-182202.32895489,0.00035,40]
[357422452,1744060797040,-1784.84568027,0.00035,120]
[357422453,1744060797074,-233188.1888543,0.0003511,30]
[357422454,1744060797111,-526.55003253,0.00035424,30]
[357422455,1744060797148,-1887.14,0.00035671,120]
[357422456,1744060797190,-470.21677052,0.00036886,30]
[357422457,1744060797227,-945.69327007,0.000372,103]
[357422458,1744060797260,-945.69327003,0.000372,103]
[357422459,1744060797293,-945.69327003,0.000372,103]
[357422460,1744060797325,-1000.0,0.00037544,30]
[357422461,1744060797359,-151.95805675,0.00037999,120]
[357422462,1744060797393,-1000.0,0.00038532,30]
[357422463,1744060797427,-214.23852231,0.00039,120]
[357422464,1744060797458,-3570.99137609,0.00039,120]
[357422465,1744060797489,-167.52835503,0.00039,120]
[357422466,1744060797524,-945.69327003,0.00039948,120]
[357422467,1744060797557,-900.0,0.0004,41]
[357422468,1744060797589,-10054.45306465,0.0004,120]
[357422469,1744060797622,-5124.48467391,0.0004,30]
[357422470,1744060797654,-9997.32020136,0.0004,30]
[357422471,1744060797687,-405.78823983,0.0004,120]
[357422472,1744060797719,-3001.31617396,0.0004,30]
[357422473,1744060797750,-20405.73177776,0.0004,30]
[357422474,1744060797783,-1190.0,0.0004,120]
[357422475,1744060801367,2036.61,0.00035671,120]
[357422476,1744061021074,900.0,0.0004,41]
[357422477,1744061040476,2617.585766,0.0004,30]
[357422480,1744061128617,1133.54925912,0.00011,2]
[357422481,1744061136808,12967.63337938,8e-05,2]
[357422482,1744061155225,898.8173615,6.94e-05,2]
[357422483,1744061155252,506.65712452,6.94e-05,2]
[357422484,1744061162709,12553.11532418,8e-05,2]
[357422485,1744061166827,500.0,0.0004,30]
[357422486,1744061166992,860.8119214,8e-05,2]
[357422487,1744061169992,189.13865403,0.000372,103]
[357422488,1744061175004,189.138654,0.000372,103]
[357422490,1744061179986,189.138654,0.000372,103]
[357422491,1744061185027,189.138654,0.00038643,112]
[357422492,1744061228139,-250.0,0.00019,2]
[357422493,1744061228162,-2133.44493377,0.0001985,2]
[357422494,1744061279998,-250.0,0.00015,2]
[357422500,1744061317011,3411.69955865,0.000365,120]
[357422502,1744061323756,-150.0,0.000149,2]
[357422503,1744061323781,-9.9,0.00015,2]
[357422504,1744061326227,250.0,0.00013699,2]
[357422505,1744061336478,-154.13364746,0.00014925,2]
[357422506,1744061341978,-40.48463154,0.00014925,2]
[357422507,1744061342002,-127.35246846,0.00014999,2]
[357422509,1744061347182,-172.64753154,0.00014999,2]
[357422510,1744061347205,-3154.72042199,0.00015,2]
[357422511,1744061348100,-24335.69399302,0.00015,2]
[357422513,1744061352912,-7771.57931935,0.00015,2]
[357422516,1744061352972,-7216.08873542,0.00015,2]
[357422517,1744061362104,-250733.39514811,0.00015,2]
[357422518,1744061364132,-2026.89862853,0.00015,2]
[357422519,1744061366085,-9625.263158,0.00015,2]
[357422520,1744061377827,-8071.33268044,0.00015,2]
[357422521,1744061377884,-8071.33268044,0.00015,2]
[357422522,1744061377942,-785.4530444,0.00015,2]
[357422526,1744061402882,-300.0,0.00014999,2]
[357422527,1744061402916,-8109.89504855,0.00015,2]
[357422528,1744061402967,-8409.89504855,0.00015,2]
[357422529,1744061403010,-614.76210597,0.00015,2]
[357422530,1744061404913,-239.54394806,0.0001499,2]
[357422531,1744061411873,-1416.29,0.00015,2]
[357422538,1744061432194,-88040.6971862,0.00015,2]
[357422539,1744061432346,-3062.41919282,0.00015,2]
[357422540,1744061432890,-1013.90007998,0.00015,2]
[357422541,1744061432992,-1380.71,0.00015,2]
[357422549,1744061438632,-7918.61196079,0.00015,2]
[357422556,1744061438694,-145.24319021,0.00015,2]
[357422561,1744061438741,-1292998.01830047,0.00015,2]
[357422563,1744061438751,-16462.3323084,0.00016216,2]
[357422564,1744061438761,-3573.59569576,0.00016316,2]
[357422565,1744061438771,-420.0,0.00016416,2]
[357422566,1744061438781,-16462.33230833,0.00017181,2]
[357422567,1744061438791,-3573.59569568,0.0001727,2]
[357422568,1744061438801,-587.0,0.00017966,2]
[357422569,1744061438811,-396.71245237,0.000181,2]
[357422570,1744061438821,-16462.33230833,0.00018146,2]
[357422571,1744061438831,-3573.59569568,0.00018224,2]
[357422572,1744061438841,-16462.33230833,0.00019111,2]
[357422573,1744061438851,-200.0,0.00019126,7]
[357422574,1744061438861,-3573.59569568,0.00019177,2]
[357422575,1744061438871,-600.0,0.000196,7]
[357422576,1744061438881,-3311.2865582,0.0001961,2]
[357422577,1744061438891,-823.0,0.00019663,2]
[357422578,1744061438901,-1300.0,0.000197,7]
[357422579,1744061438910,-1900.0,0.000198,7]
[357422580,1744061438920,-3023.52241689,0.0001987,2]
[357422581,1744061438930,-3612.46807607,0.000199,3]
[357422582,1744061438940,-2600.0,0.000199,7]
[357422583,1744061438950,-725.51621793,0.000199,2]
[357422584,1744061438959,-21891.85121056,0.000199,2]
[357422585,1744061438969,-258.48611776,0.000199,2]
[357422586,1744061438979,-418.83244837,0.0001994,2]
[357422587,1744061438989,-162871.42626514,0.0001995,2]
[357422588,1744061438998,-500.0,0.00019973,2]
[357422589,1744061439008,-500.0,0.00019973,2]
[357422590,1744061439018,-379790.16611191,0.0002,2]
[357422591,1744061439030,-41128.00180814,0.0002,2]
[357422595,1744061440532,-0.02618113,0.000199,2]
[357422596,1744061440556,-187.13314286,0.000199,2]
[357422597,1744061440569,-154.36547476,0.0002,2]
[357422598,1744061440833,-41160.17429052,0.0002,2]
[357422599,1744061440851,-86469.40000043,0.0002,2]
[357422603,1744061441421,-187.13314286,0.0002,2]
[357422604,1744061442492,-442.86685714,0.0002,2]
[357422636,1744061444424,-500.45,0.0002,2]
[357422640,1744061446632,-1364358.33488223,0.0002,2]
[357422646,1744061446864,-643.88316476,0.0002,2]
[357422647,1744061446875,-4306.11683524,0.0002,2]
[357422648,1744061446887,-216647.97477922,0.0002,2]
[357422649,1744061560738,-198.86575981,0.00014999,2]
[357422650,1744061560762,-21.95048001,0.00014999,2]
[357422651,1744061672444,189.138654,0.000372,103]
[357422652,1744061731003,405.0,0.0004,30]
[357422653,1744061837689,500.0,0.00042847,120]
[357422654,1744061967976,3193.192,0.00042818,120]
[357422658,1744062369056,3026.6569052,0.00042818,30]
[357422659,1744062435357,-250.0,0.00019,2]
[357422660,1744062435378,-630.0,0.000195,2]
[357422661,1744062435400,-2983.759,0.000196,2]
[357422662,1744062435422,-175.61285955,0.000196,2]
[357422663,1744062435444,-250.0,0.0001975,2]
[357422664,1744062435465,-162.72138729,0.000199,2]
[357422665,1744062435488,-153.83653982,0.000199,2]
[357422666,1744062441059,-6894.76230892,0.000199,2]
[357422668,1744062568152,-164.84330974,0.00019873,2]
[357422669,1744062568173,-3396.74595745,0.000199,2]
[357422670,1744062568193,-164.84330974,0.000199,2]
[357422671,1744062568215,-2350.98380811,0.000199,2]
[357422672,1744062568236,-162.72138726,0.000199,2]
[357422673,1744062568257,-500.0,0.00019973,2]
[357422674,1744062568277,-226.90474604,0.00019999,2]
[357422675,1744062568299,-13643.44920166,0.0002,2]
[357422677,1744062631920,-31325.99877469,0.0002,2]
[357422678,1744062631978,-494.7767235,0.0002,2]
[357422679,1744062631991,-18434.91370969,0.0002,2]
[357422746,1744062637434,-511.7699755,0.0002,2]
[357422747,1744062637540,-40319.42812218,0.0002,2]
[357422748,1744062637552,-121268.15565427,0.0002,2]
[357422756,1744062639611,-967.07159406,0.0002,2]
[357422757,1744062639863,-764.947,0.0002,2]
[357422758,1744062639875,-2421.15000765,0.0002,2]
[357422759,1744062639934,-103346.28390048,0.0002,2]
[357422760,1744062640006,-848.05474377,0.0002,2]
[357422761,1744062640018,-2473.77248482,0.0002,2]
[357422763,1744062640070,-964.51265668,0.0002,2]
[357422773,1744062642525,-445.93234517,0.0002,2]
[357422774,1744062642536,-11461.63951706,0.0002,2]
[357422775,1744062642547,-1915.03356049,0.0002,2]
[357422776,1744062642558,-882.46632352,0.0002,2]
[357422777,1744062642587,-83.86488886,0.0002,2]
[357422778,1744062642666,-275.98042131,0.0002,2]
[357422779,1744062642708,-7732.94178223,0.0002,2]
[357422780,1744062642719,-36335.0,0.0002,2]
[357422781,1744062642731,-608.44251436,0.0002,2]
[357422782,1744062642742,-735.915,0.0002,2]
[357422783,1744062642754,-6178.31955786,0.0002,2]
[357422784,1744062642765,-1121.145,0.0002,2]
[357422788,1744062643422,-9023.78068925,0.0002,2]
[357422790,1744062645523,-397.39523315,0.0002,2]
[357422791,1744062645639,-12885.00648281,0.0002,2]
[357422792,1744062645703,-3453.25681683,0.0002,2]
[357422793,1744062645768,-47548.68294982,0.0002,2]
[357422794,1744062645858,-59137.89324753,0.0002,2]
[357422795,1744062645895,-10047.84317745,0.0002,2]
[357422796,1744062645909,-2961.53035587,0.0002,2]
[357422797,1744062645922,-1505.81997889,0.0002,2]
[357422798,1744062645934,-3522.39415,0.0002,2]
[357422799,1744062645946,-147420.19761853,0.0002,2]
[357422800,1744062645956,-280.16632701,0.0002,2]
[357422802,1744062645965,-151.3,0.0002,2]
[357422803,1744062645975,-1312.67,0.0002069,2]
[357422804,1744062645985,-22487.97345715,0.00020725,2]
[357422805,1744062645997,-777.77693065,0.00020725,2]
[357422810,1744062913210,1709.63,0.00035671,120]
[357422811,1744063110689,2387.007,0.00033,34]
[357422812,1744063254759,150.0,0.00042821,30]
[357422813,1744063397283,794.1191492,0.00042825,120]
[357422814,1744063401506,422.28184228,0.00042825,120]
[357422815,1744063405179,422.28184228,0.00038,120]
[357422816,1744063408277,422.28184228,0.0004,120]
[357422817,1744063610957,2133.444934,0.00019243,2]
[357422819,1744063831859,-238.29017614,0.0001944,2]
[357422820,1744063831870,-4019.71571899,0.0001954,2]
[357422821,1744063831880,-160.52535,0.0001964,2]
[357422822,1744063831891,-500.0,0.0001974,2]
[357422823,1744063831901,-500.0,0.0001974,2]
[357422824,1744063831911,-500.0,0.0001974,2]
[357422825,1744063831921,-500.0,0.0001974,2]
[357422826,1744063831931,-1381.09,0.00019901,2]
[357422827,1744063831942,-14560.28619314,0.0001994,2]
[357422828,1744063831952,-238.29017613,0.00020041,2]
[357422829,1744063831963,-711.85,0.00020325,2]
[357422830,1744063831973,-150.0,0.00020349,2]
[357422831,1744063831983,-200.0,0.00020395,2]
[357422832,1744063831994,-200.0,0.00020404,2]
[357422833,1744063832005,-211.5,0.00020513,2]
[357422834,1744063832016,-1702.31,0.00020553,2]
[357422835,1744063832026,-224.77,0.00020579,2]
[357422836,1744063832037,-238.29017613,0.00020641,2]
[357422837,1744063832047,-1100.0,0.00020724,2]
[357422838,1744063832057,-26825.63556905,0.00020725,2]
[357422839,1744063832068,-5557.84,0.00020741,2]
[357422840,1744063832078,-310.67,0.00020765,2]
[357422841,1744063832089,-612.5,0.00020806,2]
[357422843,1744063832099,-14572.62514931,0.00020914,2]
[357422845,1744063832112,-9327.37485069,0.00020914,2]
[357422847,1744063832122,-2125.18,0.00020945,2]
[357422850,1744063832133,-226.90474604,0.0002095,2]
[357422852,1744063832143,-9999.99,0.00020951,2]
[357422854,1744063832153,-150.99,0.00020951,2]
[357422855,1744063832163,-999.99,0.00020951,2]
[357422858,1744063832174,-2867.08,0.00020951,2]
[357422860,1744063832184,-7863.08,0.00020951,2]
[357422862,1744063832194,-4530.64,0.00020951,2]
[357422864,1744063832209,-299.99,0.00020951,7]
[357422866,1744063832219,-508.23,0.00020951,2]
[357422868,1744063832229,-158.53,0.00020963,2]
[357422869,1744063832238,-500.0,0.00020973,2]
[357422871,1744063832249,-480.076,0.00020973,2]
[357422872,1744063832260,-480.076,0.00020973,2]
[357422874,1744063832270,-480.076,0.00020973,2]
[357422876,1744063832280,-480.076,0.00020973,2]
[357422877,1744063832290,-480.076,0.00020973,2]
[357422878,1744063832300,-480.076,0.00020973,2]
[357422879,1744063832310,-480.076,0.00020973,2]
[357422880,1744063832320,-480.076,0.00020973,2]
[357422881,1744063832329,-480.076,0.00020973,2]
[357422882,1744063832339,-480.076,0.00020973,2]
[357422883,1744063832348,-22872.77,0.00020992,2]
[357422884,1744063832358,-300.0,0.00021,2]
[357422885,1744063832367,-185.26,0.00021061,2]
[357422886,1744063832377,-500.0,0.00021125,2]
[357422887,1744063832387,-2000.0,0.00021191,2]
[357422888,1744063832396,-1765.9,0.00021197,2]
[357422889,1744063832406,-1000.0,0.00021233,2]
[357422890,1744063832416,-500.0,0.0002126,2]
[357422891,1744063832425,-250.0,0.00021277,2]
[357422892,1744063832435,-250.0,0.00021384,2]
[357422893,1744063832445,-13760.1923,0.00021604,2]
[357422894,1744063832454,-78015.68002777,0.00021618,2]
[357422895,1744063832479,-8484.51167223,0.00021618,2]
[357422896,1744063832489,-3638.75,0.00021634,2]
[357422897,1744063832498,-975.06542966,0.00021649,2]
[357422898,1744063832595,-1594.68597748,0.00021649,2]
[357422899,1744063832605,-520.411,0.00021657,2]
[357422900,1744063832615,-5727.8646855,0.00021657,2]
[357422901,1744063832628,-285.661587,0.00021657,2]
[357422902,1744063832644,-18182.0257275,0.00021657,2]
[357422903,1744063832653,-11297.6742,0.00021657,2]
[357422904,1744063832663,-164.15243553,0.00021674,2]
[357422905,1744063832672,-200.0,0.00021681,7]
[357422906,1744063832683,-207.9,0.00021695,2]
[357422907,1744063832692,-12959.04476697,0.00021704,2]
[357422913,1744063837652,-1999.60814649,0.00019342,2]
[357422914,1744063837664,-442.07355051,0.00019342,2]
[357422915,1744063837673,-490.84511513,0.00021704,2]
[357422916,1744063837765,-2351.86216892,0.00021704,2]
[357422917,1744063837776,-291.84794898,0.00021704,2]
[357422918,1744063837786,-5458.87,0.00021718,2]
[357422919,1744063837795,-2123.91464865,0.00021757,2]
[357422920,1744063837928,-36.50925136,0.00021757,2]
[357422921,1744063837938,-1939.1,0.00021774,2]
[357422922,1744063837947,-250.0,0.00021819,2]
[357422923,1744063837957,-200.0,0.00021835,2]
[357422924,1744063837967,-4575.32,0.00021892,2]
[357422925,1744063837976,-493.35,0.00021918,2]
[357422926,1744063837986,-2922.4651,0.0002209,2]
[357422927,1744063837995,-3444.5456,0.0002209,2]
[357422928,1744063838004,-2677.5967,0.0002209,2]
[357422929,1744063838014,-36663.2204,0.00022357,2]
[357422930,1744063838024,-15448.737,0.00022357,2]
[357422931,1744063838034,-1353.47595422,0.00022397,2]
[357422932,1744063838044,-534.8977,0.00022422,2]
[357422933,1744063838053,-3863.14,0.00022434,2]
[357422934,1744063838062,-3863.14,0.0002244,2]
[357422935,1744063838072,-3863.14,0.00022445,2]
[357422936,1744063838082,-3863.14,0.00022451,2]
[357422937,1744063838092,-1896.43642262,0.00022457,2]
[357422938,1744063838104,-1966.70357738,0.00022457,2]
[357422939,1744063838114,-3863.14,0.00022463,2]
[357422940,1744063838123,-3863.14,0.00022469,2]
[357422942,1744063838132,-3863.14,0.00022475,2]
[357422943,1744063838141,-3863.14,0.00022481,2]
[357422944,1744063838151,-3863.14,0.00022487,2]
[357422945,1744063838160,-3863.14,0.00022493,2]
[357422946,1744063838170,-3863.14,0.00022498,2]
[357422947,1744063838180,-3863.14,0.00022504,2]
[357422948,1744063838190,-2633.10261177,0.0002251,2]
[357422950,1744063838208,-1230.03738823,0.0002251,2]
[357422951,1744063838219,-3863.14,0.00022516,2]
[357422952,1744063838229,-3863.14,0.00022522,2]
[357422953,1744063838238,-1726.06589592,0.00022528,2]
[357422954,1744063838274,-1003.84212779,0.00022528,2]
[357422959,1744063839805,-1133.23197629,0.00022528,2]
[357422960,1744063839815,-3863.14,0.00022534,2]
[357422961,1744063839824,-3863.14,0.0002254,2]
[357422962,1744063839833,-3863.14,0.00022546,2]
[357422963,1744063839842,-350.0,0.00023,2]
[357422964,1744063839851,-167.05,0.00023745,2]
[357422965,1744063839861,-601.29,0.00023836,2]
[357422966,1744063839871,-1000.0,0.00023887,2]
[357422967,1744063839880,-303.78223265,0.00024164,2]
[357422968,1744063839892,-2265.96917449,0.00024164,2]
[357422969,1744063839902,-186.97512192,0.00024173,2]
[357422970,1744063839911,-189.06963875,0.00024173,2]
[357422971,1744063839920,-5687.2,0.00024174,2]
[357422972,1744063839930,-544.09991488,0.00024174,2]
[357422973,1744063839941,-340.0,0.00024174,2]
[357422974,1744063839968,-786.325,0.00024174,2]
[357422975,1744063839979,-309.90335189,0.00024174,2]
[357422976,1744063839990,-2032.50173323,0.00024174,2]
[357422977,1744063840000,-7467.49826677,0.00024174,2]
[357422978,1744063840083,-4287.36,0.00024174,2]
[357422979,1744063840095,-1295.62173323,0.00024174,2]
[357422980,1744063840104,-2981.37826677,0.00024174,2]
[357422981,1744063840124,-318.72088959,0.00024174,2]
[357422992,1744063843711,-7765.41084364,0.00024174,2]